Cogmind - Beta 14 @@@ ROGUE MODE // 2024.12.27 @ 10:59:38 Player: PTS Result: Destroyed by 6L-N7Z(R) with Subdweller Shrapnel Launcher Performance ------------- Evolutions (0) 0 Regions Visited (2) 400 Robots Destroyed (18) 90 Value Destroyed (482) 482 Prototype IDs (0) 0 Alien Tech Used (0) 0 Bonus (0) 0 TOTAL SCORE: 972 Bonus ------- None Cogmind --------- Core Integrity 0/250 Matter 215/300 Energy 37/100 System Corruption 0% Temperature Cool (0) Movement Rolling (110) Location -10/Subcaves Parts ------- > --- POWER (1) -------- Subdweller Power Source > --- PROPULSION (2) --- Subdweller Monowheel > --- UTILITY (2) ------ (None) > --- WEAPON (2) ------- Subdweller Beam Cannon > --- INVENTORY (5) ---- Subdweller Laser Light Assault Rifle Datajack Peak State ------------ > --- POWER ------------ Subdweller Power Source > --- PROPULSION ------- Subdweller Monowheel > --- UTILITY ---------- Scrap Shield > --- WEAPON ----------- Particle Gun Assault Rifle > --- INVENTORY -------- Subdweller Beam Cannon Light Assault Rifle Subdweller Shrapnel Launcher Datajack [Rating: 11] Favorites ----------- Power Subdweller Power Source Engine Subdweller Power Source Propulsion Hover Unit Wheel Subdweller Monowheel Hover Unit Hover Unit Utility Small Storage Unit Device Seismic Detector Storage Small Storage Unit Protection Scrap Shield Weapon Assault Rifle Energy Gun Particle Gun Energy Cannon Subdweller Beam Cannon Ballistic Gun Assault Rifle Launcher Subdweller Shrapnel Launcher Build | -11 -10 -10 ------- Run | Yrd Mat Sub Slots Evolved . | . . . Power . | . . . Propulsion . | . . . Utility . | . . . Weapon . | . . . Parts Attached 19 | 7 5 7 Power 2 | 1 . 1 Engine 2 | 1 . 1 Core . | . . . Reactor . | . . . Propulsion 7 | 2 3 2 Treads . | . . . Leg . | . . . Wheel 4 | 2 . 2 Hover 3 | . 3 . Flight . | . . . Utility 3 | 2 . 1 Device 1 | 1 . . Storage 1 | 1 . . Processor . | . . . Hackware . | . . . Protection 1 | . . 1 Artifact . | . . . Weapon 7 | 2 2 3 Energy Gun 3 | . 2 1 Energy Cannon 1 | . . 1 Ballistic Gun 2 | 2 . . Ballistic Cannon . | . . . Launcher 1 | . . 1 Special Weapon . | . . . Impact Weapon . | . . . Slashing Weapon . | . . . Piercing Weapon . | . . . Special Melee Weapon . | . . . Unidentified Prototypes . | . . . Parts Lost 5 | . 2 3 Power 1 | . 1 . Propulsion . | . . . Utility 2 | . 1 1 Weapon 2 | . . 2 Highest Loss Streak 3 | . 2 3 To Critical Strikes . | . . . Average Slot Usage (%) 76 | . 79 73 Engine 6 | . 3 8 Wheel 14 | . 15 13 Hover 11 | . 12 9 Device 2 | . 4 . Storage 11 | . 14 9 Protection 1 | . . 3 Energy Gun 10 | . 9 12 Ballistic Gun 16 | . 18 13 Peak Build Rating 11 | 7 7 11 Average Rating 7 | 4 6 8 On Entrance 4 | . 7 6 Naked Turns . | . . . Heaviest Build 33 | 12 12 33 Greatest Support 40 | 26 26 40 Greatest Overweight (x) 1 | . 1 1 Average Overweight (x) . | . . . Largest Inventory Capacity 8 | 8 8 8 Average Capacity 7 | 6 8 7 Most Carried 7 | 2 5 7 Average Carried 2 | . 1 4 Final Capacity 8 | 8 8 5 Final Carried 5 | . 5 3 Class Distribution -------------------- 73% | Mutant 14% | Scavenger-Mutant 11% | Subdweller-Mutant Dominant Class ---------------- Mutant | -10/Materials Mutant | -10/Subcaves Resources | -11 -10 -10 ----------- Run | Yrd Mat Sub Matter Collected 626 | 199 261 166 Remotely . | . . . Salvage Created 781 | 15 507 259 Parts 39 | 5 23 11 Haulers Intercepted 1 | . 1 . Recyclers Shooed 2 | . 2 . Parts Field Recycled . | . . . Retrieved Matter . | . . . Parts Self-Destructed 5 | . . 5 Prevented . | . . . Kills | -11 -10 -10 ------- Run | Yrd Mat Sub Combat Hostiles Destroyed 11 | . 7 4 Guns 8 | . 7 1 AOE 2 | . . 2 Classes Destroyed 8 | 1 6 1 Worker 1 | . 1 . Tunneler 1 | 1 . . Hauler 1 | . 1 . Recycler 1 | . 1 . Operator 1 | . 1 . Watcher 2 | . 2 . Grunt 8 | . 7 1 Subdweller 3 | . . 3 Best Kill Streak 5 | 1 5 3 Combat Bots Only 3 | . 2 3 Max Kills in Single Turn 1 | 1 1 1 Gunslinging . | . . . Exploded 1 | . . 1 Melee . | . . . Uniques/NPCs Destroyed . | . . . Combat | -11 -10 -10 -------- Run | Yrd Mat Sub Hostile Shots Fired 61 | . 39 22 Missed 22 | . 15 7 Damage Taken 881 | . 280 601 Core 251 | . 73 178 Absorbed by Shields . | . . . Core Remaining (%) 100 | 100 . . Volleys Fired 77 | 1 52 24 Largest 2 | 2 2 2 Hottest 85 | 40 85 85 Shots Fired 143 | 2 104 37 Gun 134 | 2 104 28 Cannon 3 | . . 3 Launcher 6 | . . 6 Special . | . . . Kinetic 98 | 2 76 20 Thermal 45 | . 28 17 Explosive . | . . . Electromagnetic . | . . . Robot Hit Streak 8 | 1 7 8 Robot Miss Streak 4 | . 4 2 Penetration Max . | . . . Secondary Targets 1 | . 1 . Max Gunslinging Chain 1 | . 1 . Shots Hit Robots 82 | 1 54 27 Core Hits 40 | 1 25 14 Critical Kills 2 | . 1 1 Critical Parts Destroyed . | . . . Critical Strikes 4 | . 2 2 Burn 2 | . 1 1 Meltdown 1 | . . 1 Destroy 1 | . 1 . Melee Attacks . | . . . Impact . | . . . Slashing . | . . . Piercing . | . . . Sneak Attacks . | . . . Combat Hostiles . | . . . Follow-up Attacks . | . . . Damage Inflicted 1396 | 10 653 733 Guns 969 | 10 653 306 Cannons 55 | . . 55 Explosions 372 | . . 372 Melee . | . . . Ramming . | . . . Kinetic 972 | 10 450 512 Thermal 424 | . 203 221 Explosive . | . . . Electromagnetic . | . . . Impact . | . . . Slashing . | . . . Piercing . | . . . Highest Corruption . | . . . Average Corruption . | . . . Corruption Purged . | . . . Corruption Blocked . | . . . Overload Shots . | . . . Overflow Damage . | . . . Projectiles . | . . . Explosions . | . . . Melee . | . . . Knockbacks . | . . . Impact . | . . . Kinetic . | . . . Secondary . | . . . Self-Inflicted Damage 9 | . . 9 Shots 1 | . . 1 Rammed . | . . . Targets Rammed . | . . . Kicked . | . . . Crushed . | . . . Highest Temperature 123 | . 123 4 Average Temperature 30 | . 31 4 Received Heat Transfer 246 | . 159 87 Siege Activations . | . . . Robots Corrupted . | . . . Combat Hostiles . | . . . Parts Fried . | . . . Impact Corruptions . | . . . Robots Melted 1 | . . 1 Combat Hostiles 1 | . . 1 Parts Melted 2 | . 2 . Heat Transferred 1136 | . 581 555 Parts Sabotaged . | . . . Parts Stolen . | . . . Parts Stripped . | . . . Power Chain Reactions . | . . . Alert | -11 -10 -10 ------- Run | Yrd Mat Sub Peak Influence 291 | 5 291 . Initial 3 | . 3 . Average 133 | 1 149 . Maximum Alert Level 1 | . 1 . Low Security (%) 58 | 100 53 . Level 1 41 | . 46 . Level 2 . | . . . Level 3 . | . . . Level 4 . | . . . Level 5 . | . . . High Security . | . . . Max Security . | . . . Squads Dispatched 4 | . 4 . Investigation 1 | . 1 . Extermination . | . . . Reinforcement 3 | . 3 . Assault . | . . . Garrison . | . . . Intercept . | . . . Searches Triggered . | . . . Construction Impeded . | . . . Haulers Reinforced . | . . . Active Scanning Responses . | . . . Cargo Convoy Interrupts . | . . . Stealth | -11 -10 -10 --------- Run | Yrd Mat Sub Distress Signals 3 | . 3 . Communications Jammed . | . . . Distress Signals . | . . . Times Spotted 35 | . 29 6 Peak Tracking Total 6 | . 6 2 Tactical Retreats 4 | . 4 . Traps | -11 -10 -10 ------- Run | Yrd Mat Sub Traps Triggered 2 | . 1 1 Indirectly . | . . . Trap Hack Attempts . | . . . Triggered . | . . . Disarmed . | . . . Reprogrammed . | . . . Reused . | . . . Traps Extracted . | . . . Installed . | . . . Triggered . | . . . Machines | -11 -10 -10 ---------- Run | Yrd Mat Sub Machines Disabled . | . . . Max in Single Turn . | . . . Machines Repaired . | . . . Machines Dismantled . | . . . Machines Sabotaged . | . . . Overloaded Fab Kills . | . . . Hacking | -11 -10 -10 --------- Run | Yrd Mat Sub Machines Accessed 2 | . 2 . Terminals 2 | . 2 . Fabricators . | . . . Repair Stations . | . . . Recycling Units . | . . . Scanalyzers . | . . . Garrison Access . | . . . Total Hacks 4 | . 4 . Successful 2 | . 2 . Failed 2 | . 2 . Catastrophic 1 | . 1 . Database Lockouts . | . . . Manual 2 | . 2 . Terminals 4 | . 4 . Fabricators . | . . . Repair Stations . | . . . Recycling Units . | . . . Scanalyzers . | . . . Garrison Access . | . . . Terminal Hacks 2 | . 2 . Terminal Index 1 | . 1 . Zone Layout 1 | . 1 . Fabricator Hacks . | . . . Repair Station Hacks . | . . . Recycling Unit Hacks . | . . . Scanalyzer . | . . . Garrison Access Hacks . | . . . Unauthorized Hacks . | . . . Terminals . | . . . Fabricators . | . . . Repair Stations . | . . . Recycling Units . | . . . Scanalyzers . | . . . Garrison Access . | . . . Data Cores Recovered . | . . . Used . | . . . Hacking Detections 1 | . 1 . Full Trace Events . | . . . Feedback Events . | . . . Feedback Blocked . | . . . Robot Schematics Acquired . | . . . Robots Built . | . . . Authchips . | . . . Time . | . . . Total Robot Build Rating . | . . . Part Schematics Acquired . | . . . Parts Built . | . . . Authchips . | . . . Time . | . . . Total Part Build Rating . | . . . Parts Repaired . | . . . Time . | . . . Parts Recycled . | . . . Recycled Matter . | . . . Retrieved Matter . | . . . Retrieved Components . | . . . Parts Scanalyzed . | . . . Part Schematics Acquired . | . . . Parts Damaged . | . . . Bothacking | -11 -10 -10 ------------ Run | Yrd Mat Sub Used RIF Installer . | . . . Robots Hacked . | . . . Non-combat . | . . . Combat . | . . . Robot Hacks Applied . | . . . Relay Couplers Released . | . . . Fabnet Peak Effective % . | . . . Robots Rewired . | . . . Allies Hacked . | . . . Hacks Repelled . | . . . Allies | -11 -10 -10 -------- Run | Yrd Mat Sub Total Allies . | . . . Largest Group . | . . . Highest-Rated Group . | . . . Highest-Rated Ally . | . . . Total Orders . | . . . Ally Attacks . | . . . Total Damage . | . . . Kills . | . . . Allies Corrupted . | . . . Allies Melted . | . . . Intel | -11 -10 -10 ------- Run | Yrd Mat Sub Robot Analysis Total . | . . . Derelict Logs Recovered . | . . . Drone Launches . | . . . Drone Recoveries . | . . . Exploration | -11 -10 -10 ------------- Run | Yrd Mat Sub Turns Passed 889 | 53 432 404 Spaces Moved 678 | 43 354 281 Core 4 | 4 . . Treads . | . . . Legs . | . . . Wheels 348 | 39 123 186 Hover 326 | . 231 95 Flight . | . . . Fastest Speed 50 | 50 56 56 Average Speed 79 | 85 68 93 Slowest Speed 125 | 90 125 120 Overloaded Moves . | . . . Propulsion Burnouts . | . . . Robots Hopped . | . . . Cave-ins Triggered . | . . . Exploration Rate (%) 27 | 3 52 28 Regions Visited 2 Branch Regions 1 Pre-discovered Areas . | . . . Known Exits Taken . | . . . Unknown Exits Taken 2 | 1 1 . Scrap Searched . | . . . Spaces Dug . | . . . Terrain Destroyed 66 | . . 66 Melee . | . . . Projectile . | . . . AOE 66 | . . 66 Terrain Rammed . | . . . Walls Destroyed . | . . . Machines Disabled . | . . . Actions | -11 -10 -10 --------- Run | Yrd Mat Sub Total 891 | 57 445 389 Wait 79 | . 24 55 Move 676 | 42 353 281 Hop . | . . . Pick Up 25 | 7 8 10 Fast Attach 1 | . . 1 Attach 12 | 7 1 4 Detach . | . . . Swap 6 | . 4 2 Drop 15 | . 3 12 Fire 77 | 1 52 24 Melee . | . . . Ram . | . . . Kick . | . . . Crush . | . . . Escape Stasis . | . . . Rewire . | . . . Trap . | . . . Miscellaneous . | . . . Route ------- -11/Scrapyard -10/Materials (discovered 3 exits: [Mat] / [*Min] / [*Sub]) -10/Subcaves History --------- Turn | Location | Event 2 | -11/Scrapyard | Met Revision 17 29 | -11/Scrapyard | Discovered new exit (range 16) 54 | -11/Scrapyard | Entered Materials 129 | -10/Materials | Discovered new exit (range 7) 315 | -10/Materials | Build established: Mutant 348 | -10/Materials | Discovered new exit (range 11) 475 | -10/Materials | Discovered new exit (range 11) 486 | -10/Materials | Entered Subcaves 754 | -10/Subcaves | Shifting Twisted Machinery released Sub. Laser 760 | -10/Subcaves | Shifting Twisted Machinery released Scrap Shield 857 | -10/Subcaves | Ambushed by Subdweller buried in earth 860 | -10/Subcaves | Core integrity fell below 50% 886 | -10/Subcaves | Core integrity fell below 20% 890 | -10/Subcaves | Destroyed by 6L-N7Z(R) with Subdweller Shrapnel Launcher Last Messages --------------- 00845_ Acquired 19 matter. 00847_ Acquired 10 matter. 00849_ Acquired 20 matter. 00852_ Critical hit (Destroy). 00855_ 89-I3O(R) destroyed. 00858_ 6L-N7Z(R): "ARGHSUB!" 00859_ OT-Q37(R) destroyed. 00862_ UW-904(R): "ARGHSUB!" 00863_ Sub. Shrapnel Launcher shoots sparks and powers down. 00865_ Scrap Shield destroyed. 00866_ 6L-N7Z(R) affixes Scrap Shield Fragment to Scrap Shield. 00867_ Sub. Power Source shoots sparks and powers down. 00870_ Assault Rifle destroyed. 00881_ Dropped Broken Sub. Shrapnel Launcher. 00885_ Particle Gun destroyed. 00887_ UW-904(R) suffers critical hit (Meltdown). Map ----- +----------------------------------------------------+ | ?????????????????????????????????????????????????? | | ?????????????????????????????????????????????????? | | ?????????????????????????????????????????????????? | | ???????????????????????????????????# ????????????? | | ?????????????????????????????????? ?????????? | | ?????????????????????????????????? ????????? | | ?????????????????????????????????? ?????????? | | ??????????????????????????#??????? ??????????? | | ?????????????????????????## ?????? ??????????? | | ?????????????????????##### ????## ???????????? | | ????????????????????? "" ??? #???????????? | | ???????????????????? ??? #???????????? | | ??????????????????; ##?# #??????? ???? | | ???????????????? #?# ###### ??? | | ??????????????? ### ???? | | ???????????????? ???????? | | ????????????????? #??????????? | | ?????????????????# * #????????????? | | ?????????????????" ;#??####??????? | | ?????????????????"" #### ##?????? | | ?????????????????" "" # #?????? | | ?????????????????????# #### ##????? | | ?????????????????????#; ### #????? | | ?????????????????????# ;;;; ; ####????? | | ????????????????????##; ; # #???????? | | ????????????????????#;;R @ % #???????? | | ?????????????????###; = #???????? | | ?????????????????# ;;;; ; ; ##???????? | | ?????????????????## ] ; #### #????????? | | ??????????????????## ;;##??# ## #????????? | | ???????????????????#; ;;###???# #### ##???????? | | ???????????????????###"##??????# #?# #???????? | | ?????????????????????##????????####?## ##???????? | | ?????????????????????????????????????# ##???????? | | ?????????????????????????????????????# ######??? | | ?????????????????????????????????????# ## # ##?? | | ?????????????????????????????????????# #?? | | ????????????????????????????????????# ##### ### | | ????????????????????????????????????##????#### # # | | ????????????????????????????????????????????# | | ????????????????????????????????????????????## | | ?????????????????????????????????????????????### ! | | ??????????????????????????????????????????????# [ | | ??????????????????????????????????????????????## " | | ?????????????????????????????????????????####### " | | ?????????????????????????????????????????#""# # | | ????????????????????????????????????????## | | ????????????????????????????????????????# = | | ????????????????????????????????????????## # ## | | ?????????????????????????????????????????# ##### | +----------------------------------------------------+ Best States ------------- Heat Dissipation 25 Energy Generation 15 Energy Capacity 200 Matter Stores 300 Matter Capacity 300 Sight Range 16 Terrain Scan Density 10 Armor Coverage 800 Evasion (%) 53 Item Schematics ----------------- None Robot Schematics ------------------ None Fabricated ------------ Nothing Alien Tech Used ----------------- None Achievements -------------- None Challenges ------------ None Game ------ Seed DefenseThunderBoregun Manual? 0 Play Time 00:12:32 Cumulative 12.3 hours Start 2024.12.27 @ 10:49:00 End 2024.12.27 @ 10:59:38 Sessions 1 Manual Loads 0 Difficulty Rogue Special Mode None Game No. 22 Rogue 22 Adventurer 0 Explorer 0 Win Type - Total 0 Types 0/0/0/0/0/0/0/0/0 Lore% 11 Gallery% 20 Achievement% 19 Wizard Run 0 Options --------- Layout 1 ASCII 0 Keyboard 0 Movement Mouse Keybinds 0 Fullscreen 1 Font 24/Smallcaps Map View 50x35 Zoom Use 0% Tactical HUD 1 Map Filters NONE Filters NONE Steam 1 RUN: b60bd02e-25fb-4516-943c-33043f82e9eb